bitfinex/quotes_BTCUSD_20251219
["timestamp","ask_amount","ask_price","bid_price","bid_amount"]
[1766152117155,0.84010714,88099.0,88084.0,0.58855]
[1766152117556,0.78335274,88099.0,88084.0,0.58855]
[1766152117776,0.78585274,88099.0,88098.0,0.00049542]
[1766152118120,0.78585274,88099.0,88089.0,0.00572]
[1766152118455,0.76091,88099.0,88089.0,0.00572]
[1766152120067,0.01135009,88105.0,88089.0,0.00572]
[1766152120068,0.43002,88108.0,88099.0,0.001099]
[1766152120270,0.05117589,88112.0,88098.0,0.00572]
[1766152120471,0.0025,88110.0,88098.0,0.00572]
[1766152120672,0.02269179,88109.0,88098.0,0.00572]
[1766152121857,0.02269179,88110.0,88098.0,0.00572]
[1766152122503,0.03404123,88110.0,88098.0,0.00572]
[1766152122695,0.01134957,88109.0,88098.0,0.00572]
[1766152122854,0.0025,88110.0,88099.0,0.25019]
[1766152123055,0.0025,88110.0,88098.0,0.34613]
[1766152123056,0.4413688,88115.0,88101.0,0.5906]
[1766152123256,0.4413688,88115.0,88102.0,0.02270096]
[1766152123454,0.01134906,88113.0,88101.0,0.5906]
[1766152123855,0.0025,88114.0,88101.0,0.5906]
[1766152124916,0.01134829,88119.0,88098.0,0.00572]
[1766152124917,0.01134803,88121.0,88104.0,0.34041]
[1766152125120,0.01134829,88119.0,88108.0,0.34041]
[1766152125292,0.0025,88118.0,88109.0,0.00572]
[1766152125499,0.01134854,88117.0,88109.0,0.00572]
[1766152125729,0.06809186,88117.0,88109.0,0.00572]
[1766152125901,0.06809211,88116.0,88109.0,0.00572]
[1766152126305,0.01134867,88116.0,88109.0,0.00572]
[1766152126509,0.01134867,88116.0,88109.0,0.00582902]
[1766152127345,0.06809186,88117.0,88109.0,0.00582902]
[1766152127564,0.0025,88120.0,88109.0,0.00582902]
[1766152127763,0.03653995,88120.0,88109.0,0.00582902]
[1766152127943,0.08411726,88133.0,88109.0,0.00582902]
[1766152127944,0.0113461,88136.0,88120.0,0.001099]
[1766152128141,0.43002,88138.0,88120.0,0.001099]
[1766152128142,0.43002,88138.0,88124.0,0.34041]
[1766152128357,0.57159,88141.0,88121.0,0.00572]
[1766152128358,0.32839,88141.0,88125.0,0.05673737]
[1766152128561,0.43002,88146.0,88131.0,0.34041]
[1766152128741,0.01134532,88142.0,88132.0,0.57273]
[1766152128939,0.01134545,88141.0,88132.0,0.00572]
[1766152129127,0.32839,88139.0,88132.0,0.00572]
[1766152129321,0.43002,88140.0,88132.0,0.00572]
[1766152129523,0.44136558,88140.0,88132.0,0.00572]
[1766152129724,0.01134571,88139.0,88132.0,0.00572]
[1766152129944,0.01134584,88138.0,88132.0,0.00572]
[1766152130346,0.44136558,88140.0,88132.0,0.00572]
[1766152130757,0.01134571,88139.0,88132.0,0.00572]
[1766152132281,0.01134584,88138.0,88132.0,0.00572]
[1766152132480,0.06807436,88139.0,88132.0,0.00572]
[1766152132695,0.44136558,88140.0,88132.0,0.00572]
[1766152133159,0.49809392,88140.0,88132.0,0.00572]
[1766152133424,0.01134571,88139.0,88132.0,0.00572]
[1766152133590,0.01134584,88138.0,88132.0,0.00572]
[1766152134212,0.01134571,88139.0,88132.0,0.00572]
[1766152134412,0.06807447,88139.0,88132.0,0.00572]
[1766152134620,0.01134597,88137.0,88132.0,0.00572]
[1766152134828,0.43002,88139.0,88132.0,0.00572]
[1766152135579,0.48674913,88139.0,88132.0,0.00572]
[1766152135782,0.75841,88137.0,88133.0,0.00572]
[1766152136461,0.75841,88137.0,88119.0,0.06808953]
[1766152136462,0.01134738,88126.0,88112.0,0.0125]
[1766152136663,0.75841,88124.0,88119.0,0.0025]
[1766152136864,0.75841,88124.0,88108.0,0.0113497]
[1766152136865,0.76975764,88124.0,88109.0,0.34051902]
[1766152137106,0.75841,88124.0,88110.0,0.05116]
[1766152137324,0.75841,88124.0,88110.0,0.63253]
[1766152138915,0.06808306,88128.0,88109.0,0.00010902]
[1766152138916,0.01134738,88126.0,88109.0,0.00010902]
[1766152139286,1.36179584,88140.0,88099.0,0.34041]
[1766152139287,0.01134854,88117.0,88110.0,0.00572]
[1766152139434,0.01134854,88117.0,88111.0,0.00572]
[1766152139435,0.76975854,88117.0,88111.0,0.00572]
[1766152139634,0.75841,88117.0,88111.0,0.00572]
[1766152139844,0.75841,88116.0,88111.0,0.00572]
[1766152140046,0.01134816,88120.0,88111.0,0.00572]
[1766152140387,0.01134816,88120.0,88112.0,0.00572]
[1766152140388,0.00572033,88115.0,88112.0,0.00572]
[1766152140512,0.00572033,88115.0,88105.0,0.0025]
[1766152140721,0.01134726,88127.0,88115.0,0.00109867]
[1766152140967,0.01134726,88127.0,88106.0,0.05116]
[1766152140968,0.00010894,88127.0,88116.0,0.58847]
[1766152141165,0.01134635,88134.0,88116.0,0.58847]
[1766152141166,0.75841,88144.0,88123.0,0.34041]
[1766152141373,0.75841,88144.0,88129.0,0.011347]
[1766152141594,0.00562867,88143.0,88130.0,0.00572]
[1766152141797,0.75841,88142.0,88130.0,0.00572]
[1766152142025,0.76975532,88142.0,88130.0,0.00572]
[1766152142224,0.01134558,88140.0,88130.0,0.00572]
[1766152142430,0.75841,88138.0,88130.0,0.00572]
[1766152142628,0.76975584,88138.0,88130.0,0.00572]
[1766152142878,0.75841,88138.0,88130.0,0.00572]
[1766152143068,0.00562867,88143.0,88138.0,0.001099]
[1766152143305,0.00362867,88143.0,88139.0,0.00572]
[1766152143474,0.0025,88151.0,88139.0,0.00572]
[1766152143816,0.02493592,88152.0,88139.0,0.00572]
[1766152144018,0.01134417,88151.0,88139.0,0.00572]
[1766152144330,0.01134442,88149.0,88139.0,0.00572]
[1766152144758,0.05672465,88146.0,88139.0,0.00572]
[1766152144957,0.06806966,88145.0,88139.0,0.00572]
[1766152145156,0.78489,88148.0,88139.0,0.00572]
[1766152145505,0.79623455,88148.0,88139.0,0.00572]
[1766152145891,0.85295734,88148.0,88139.0,0.00572]
[1766152146034,0.78489,88148.0,88139.0,0.00572]
[1766152146232,0.79623455,88148.0,88139.0,0.00572]
[1766152146435,0.43518,88148.0,88139.0,0.00572]
[1766152147472,0.34971,88154.0,88139.0,0.00572]
[1766152147679,0.34971,88154.0,88140.0,0.01134558]
[1766152147883,0.34971,88154.0,88141.0,0.04544]
[1766152148559,0.43518,88156.0,88141.0,0.28649]
[1766152148768,0.43518,88156.0,88142.0,0.57423]
[1766152149237,0.43518,88156.0,88143.0,0.0226904]
[1766152149481,0.0025,88164.0,88141.0,0.04544]
[1766152149482,0.78489,88168.0,88147.0,0.01134468]
[1766152149642,0.0025,88166.0,88156.0,0.001099]
[1766152149976,0.0025,88164.0,88157.0,0.00572]
[1766152150743,0.00286402,88164.0,88157.0,0.00572]
[1766152150944,0.01170651,88164.0,88157.0,0.00572]
[1766152151190,0.0025,88163.0,88157.0,0.00572]
[1766152151509,0.0025,88161.0,88157.0,0.00572]
[1766152151708,0.01384262,88163.0,88157.0,0.00572]
[1766152151973,0.0025,88163.0,88157.0,0.00572]
[1766152152200,0.01384262,88163.0,88157.0,0.00572]
[1766152152612,0.0025,88161.0,88157.0,0.00572]
[1766152152980,0.01384288,88161.0,88157.0,0.00572]
[1766152153184,0.0705579,88161.0,88157.0,0.00572]
[1766152153720,0.0025,88161.0,88157.0,0.00572]
[1766152154070,0.01384288,88161.0,88157.0,0.00572]
[1766152154271,0.0025,88161.0,88157.0,0.00572]
[1766152154474,0.36141651,88164.0,88157.0,0.00572]
[1766152154475,0.35007402,88164.0,88157.0,0.00572]
[1766152154713,0.01134262,88163.0,88157.0,0.00572]
[1766152154914,0.79623275,88162.0,88157.0,0.00572]
[1766152155113,0.01134314,88159.0,88158.0,0.00572]
[1766152155314,0.85294868,88160.0,88158.0,0.00572]
[1766152155691,0.78489,88160.0,88158.0,0.00572]
[1766152155892,0.43518,88160.0,88158.0,0.00572]
[1766152156322,0.06841906,88164.0,88158.0,0.00572]
[1766152156545,0.06805614,88163.0,88158.0,0.00572]
[1766152157288,0.06805658,88162.0,88158.0,0.00572]
[1766152157506,0.06805776,88161.0,88158.0,0.00572]
[1766152157637,0.84002776,88161.0,88158.0,0.00572]
[1766152158269,0.77197,88161.0,88158.0,0.00572]
[1766152159109,0.84002782,88161.0,88158.0,0.00572]
[1766152159306,0.34314,88159.0,88145.0,0.0025]
[1766152159463,0.35448314,88159.0,88147.0,0.0025]
[1766152159670,0.34314,88159.0,88147.0,0.0025]
[1766152161515,0.42883,88160.0,88147.0,0.0025]
[1766152161516,0.05671727,88157.0,88147.0,0.0025]
[1766152161698,0.77197,88144.0,88137.0,0.04544]
[1766152161900,0.77197,88144.0,88138.0,0.00572]
[1766152162126,0.42883,88144.0,88138.0,0.00572]
[1766152162337,0.05672269,88149.0,88138.0,0.00572]
[1766152162338,0.01134442,88149.0,88138.0,0.00572]
[1766152162524,0.34314,88148.0,88133.0,0.3358]
[1766152162755,0.22687196,88156.0,88128.0,0.33287248]
[1766152162756,0.35448532,88142.0,88128.0,0.26479]
[1766152162903,0.35448532,88142.0,88133.0,0.04544]
[1766152163242,0.34314,88142.0,88133.0,0.04544]
[1766152163465,0.01134365,88155.0,88138.0,0.3358]
[1766152163687,0.0025,88154.0,88139.0,0.60768]
[1766152163820,0.01384378,88154.0,88139.0,0.60768]
[1766152164021,0.01134404,88152.0,88139.0,0.60768]
[1766152164223,0.01134417,88151.0,88139.0,0.60768]
[1766152165282,0.01134429,88150.0,88139.0,0.60768]
[1766152165458,0.01134442,88149.0,88139.0,0.27188]
[1766152165637,0.01134455,88148.0,88139.0,0.27188]
[1766152165832,0.01134507,88144.0,88139.0,0.004621]
[1766152166092,0.0113452,88143.0,88139.0,0.004621]
[1766152166663,0.05672761,88141.0,88139.0,1e-06]
[1766152166865,0.82869761,88141.0,88139.0,1e-06]
[1766152167421,0.77197,88141.0,88139.0,1e-06]
[1766152167620,0.05672793,88140.0,88139.0,1e-06]
[1766152167979,0.82869793,88140.0,88139.0,1e-06]
[1766152168618,0.77197,88140.0,88139.0,1e-06]
[1766152170011,0.01134648,88133.0,88126.0,0.0025]
[1766152170168,0.01134648,88133.0,88131.0,1.88e-06]
[1766152170169,0.06807922,88133.0,88131.0,1.88e-06]
[1766152170375,0.35448635,88134.0,88132.0,0.00572]
[1766152170613,0.34314,88134.0,88133.0,0.00572]
[1766152170829,0.49690738,88135.0,88133.0,0.00572]
[1766152171283,0.42883,88135.0,88133.0,0.00572]
[1766152171620,0.48556122,88135.0,88133.0,0.00572]
[1766152172437,0.42883,88135.0,88133.0,0.00572]
[1766152173253,0.05673179,88134.0,88133.0,0.00572]
[1766152173667,0.05673179,88134.0,88119.0,0.60836]
[1766152173668,0.01134687,88130.0,88119.0,0.27256]
[1766152173890,0.34314,88130.0,88120.0,0.00572]
[1766152175549,0.41122136,88130.0,88120.0,0.00572]
[1766152175727,0.35448687,88130.0,88120.0,0.00572]
[1766152175925,0.34314,88130.0,88120.0,0.00572]
[1766152176743,0.42883,88131.0,88120.0,0.00572]
[1766152178834,0.42883,88131.0,88120.0,0.35171]
[1766152182336,0.06807819,88134.0,88121.0,0.32868]
[1766152182543,0.32998,88133.0,88120.0,0.35258]
[1766152183367,0.01134661,88132.0,88120.0,0.35258]
[1766152183691,0.39805901,88133.0,88120.0,0.35258]
[1766152184407,0.01134687,88130.0,88120.0,0.35258]
[1766152184609,0.74233,88129.0,88120.0,0.00572]
[1766152184787,0.01134713,88128.0,88120.0,0.00572]
[1766152185149,0.74233,88129.0,88120.0,0.00572]
[1766152185353,0.753677,88129.0,88120.0,0.00572]
[1766152185554,0.74233,88129.0,88120.0,0.00572]
[1766152186303,0.01134713,88128.0,88120.0,0.00572]
[1766152186688,0.74233,88129.0,88120.0,0.00572]
[1766152186897,0.753677,88129.0,88120.0,0.00572]
[1766152187510,0.74233,88129.0,88120.0,0.00572]
[1766152188565,0.41235,88129.0,88120.0,0.00572]
[1766152189090,0.4804322,88129.0,88120.0,0.00572]
[1766152189289,0.01134751,88125.0,88120.0,0.004621]
[1766152189489,0.06808369,88127.0,88120.0,0.004621]
[1766152189683,0.01134738,88126.0,88120.0,0.004621]
[1766152189917,0.06808369,88127.0,88120.0,0.004621]
[1766152190096,0.01134738,88126.0,88120.0,0.004621]
[1766152190618,0.06808369,88127.0,88120.0,0.004621]
[1766152191020,0.01134726,88127.0,88120.0,0.004621]
[1766152191222,0.06808377,88127.0,88120.0,0.004621]
[1766152191465,0.32998,88128.0,88120.0,0.004621]
[1766152191846,0.423697,88129.0,88120.0,0.004621]
[1766152192050,0.41235,88129.0,88120.0,0.004621]
[1766152192661,0.423697,88129.0,88120.0,0.004621]
[1766152192830,0.41235,88129.0,88120.0,0.004621]
[1766152193639,0.423697,88129.0,88120.0,0.004621]
[1766152194949,0.01134713,88128.0,88120.0,0.004621]
[1766152195149,0.41235,88129.0,88120.0,0.004621]
[1766152198792,0.32998,88132.0,88120.0,0.004621]
[1766152198994,0.7536761,88136.0,88129.0,0.001099]
[1766152199193,0.06807739,88135.0,88130.0,0.00572]
[1766152199453,0.81040666,88136.0,88130.0,0.00572]
[1766152199454,0.74233,88136.0,88130.0,0.00572]
[1766152199647,0.01134635,88134.0,88130.0,0.00572]
[1766152199853,0.79906328,88132.0,88130.0,0.00572]
[1766152200082,0.74233,88132.0,88130.0,0.00572]
[1766152200212,0.41235,88132.0,88130.0,0.00572]
[1766152200425,0.05673372,88131.0,88130.0,0.00572]
[1766152201254,0.01134751,88125.0,88120.0,0.35124]
[1766152201435,0.011347,88129.0,88121.0,0.00572]
[1766152201632,0.06808137,88130.0,88121.0,0.00572]
[1766152201954,0.41235,88132.0,88121.0,0.00572]
[1766152202333,0.41212449,88132.0,88121.0,0.00572]
[1766152202535,0.41102549,88132.0,88121.0,0.00572]
[1766152203153,0.01134674,88131.0,88121.0,0.00572]
[1766152203466,0.4791054,88132.0,88121.0,0.00572]
[1766152203667,0.01134674,88131.0,88121.0,0.00572]
[1766152204371,0.41102549,88132.0,88121.0,0.00572]
[1766152204698,0.4223721,88132.0,88121.0,0.00572]
[1766152204902,0.41102549,88132.0,88121.0,0.00572]
[1766152205109,0.05673182,88135.0,88121.0,0.00572]
[1766152205395,0.01134635,88134.0,88123.0,0.35414]
[1766152205705,0.01134623,88135.0,88121.0,0.00572]
[1766152205706,0.01134545,88141.0,88124.0,0.32069]
[1766152205919,0.01134545,88141.0,88133.0,0.35436]
[1766152205920,4.953e-05,88141.0,88133.0,0.35436]
[1766152206072,4.953e-05,88141.0,88134.0,0.68077]
[1766152206270,4.953e-05,88141.0,88134.0,0.32641]
[1766152206499,0.79076429,88150.0,88138.0,0.35431]
[1766152206701,0.01134442,88149.0,88138.0,0.35431]
[1766152207030,0.77942,88150.0,88138.0,0.35431]
[1766152207223,0.01134442,88149.0,88138.0,0.35431]
[1766152207429,0.84748593,88150.0,88138.0,0.35431]
[1766152207606,0.01134455,88148.0,88138.0,0.35431]
[1766152207812,0.01134352,88156.0,88140.0,0.35472]
[1766152208016,0.00036376,88156.0,88146.0,0.35472]
[1766152208218,0.00036376,88156.0,88141.0,0.02841091]
[1766152208219,0.00036376,88156.0,88148.0,0.35472]
[1766152208422,0.06842537,88156.0,88149.0,0.00572]
[1766152208583,0.01134365,88155.0,88149.0,0.00572]
[1766152208788,0.01134378,88154.0,88149.0,0.00572]
[1766152209016,0.01134404,88152.0,88149.0,0.00572]
[1766152209227,0.01134404,88152.0,88149.0,0.004621]
[1766152209228,0.05672114,88151.0,88149.0,0.004621]
[1766152210054,0.01134429,88150.0,88141.0,0.0025]
[1766152210301,0.34031455,88148.0,88142.0,0.00572]
[1766152210439,0.01134468,88147.0,88142.0,0.00572]
[1766152210638,0.01134468,88147.0,88134.0,0.35511]
[1766152210639,0.34031455,88148.0,88134.0,0.35511]
[1766152210881,0.34031455,88148.0,88133.0,0.04544]
[1766152210882,0.77942,88142.0,88133.0,0.04544]
[1766152211079,0.77942,88142.0,88135.0,0.00572]
[1766152211290,0.79076532,88142.0,88135.0,0.00572]
[1766152211584,0.77942,88142.0,88135.0,0.00572]
[1766152211929,0.0025,88151.0,88135.0,0.00572]
[1766152212134,0.0025,88149.0,88142.0,0.001099]
[1766152212356,0.33147,88149.0,88142.0,0.006819]
[1766152212589,0.77942,88147.0,88142.0,0.00572]
[1766152213880,0.0025,88149.0,88142.0,0.00572]
[1766152214281,0.32897,88148.0,88142.0,0.00572]
[1766152214484,0.0025,88149.0,88142.0,0.00572]
[1766152214485,0.0680694,88146.0,88142.0,0.00572]
[1766152214685,0.05672552,88144.0,88142.0,0.00572]
[1766152214904,0.8474912,88143.0,88142.0,0.00572]
[1766152215097,0.77942,88143.0,88142.0,0.00572]
[1766152215418,0.836146,88143.0,88142.0,0.00572]
[1766152216785,0.05672813,88140.0,88129.0,0.0025]
[1766152216958,0.77942,88140.0,88131.0,0.04544]
[1766152217373,0.45045,88140.0,88131.0,0.04544]
[1766152219325,0.32897,88144.0,88131.0,0.04544]
[1766152219500,0.0113452,88143.0,88140.0,0.001099]
[1766152219702,0.0113452,88143.0,88141.0,0.00572]
[1766152220018,0.79368507,88144.0,88141.0,0.00572]
[1766152220229,0.85041048,88144.0,88141.0,0.00572]
[1766152221190,0.78234,88144.0,88141.0,0.00572]
[1766152222195,0.45337,88144.0,88141.0,0.00572]
[1766152223513,0.46471507,88144.0,88141.0,0.00572]
[1766152223712,0.46471507,88144.0,88131.0,0.36844]
[1766152223928,0.46471507,88144.0,88132.0,0.00572]
[1766152224147,0.0113452,88143.0,88132.0,0.00572]
[1766152224345,0.01134558,88140.0,88132.0,0.00572]
[1766152224606,0.80252,88141.0,88132.0,0.00572]
[1766152224991,0.45337,88141.0,88132.0,0.00572]
[1766152225204,0.46471545,88141.0,88132.0,0.00572]
[1766152225359,0.45337,88141.0,88132.0,0.00572]
[1766152225747,0.81386545,88141.0,88132.0,0.00572]
[1766152225988,0.80252,88141.0,88132.0,0.00572]
[1766152226744,0.81252,88141.0,88132.0,0.00572]
[1766152227298,0.068074,88140.0,88132.0,0.00572]
[1766152227460,0.01134558,88140.0,88132.0,0.00572]
[1766152227889,0.88059324,88141.0,88132.0,0.00572]
[1766152228313,0.01134558,88140.0,88132.0,0.00572]
[1766152228470,0.88059324,88141.0,88132.0,0.00572]
[1766152228670,0.88059274,88141.0,88132.0,0.00572]
[1766152228866,0.81252,88141.0,88132.0,0.00572]
[1766152229085,0.46337,88141.0,88132.0,0.00572]
[1766152230137,0.01,88141.0,88132.0,0.00572]
[1766152230301,0.01,88141.0,88134.0,0.37035]
[1766152231592,0.01,88141.0,88135.0,0.34679]
[1766152233505,0.01,88141.0,88136.0,0.00572]
[1766152234781,0.01134571,88139.0,88136.0,0.00572]
[1766152234979,0.76593,88138.0,88137.0,0.00572]
[1766152235927,0.77727584,88138.0,88127.0,0.41673]
[1766152236072,0.77727584,88138.0,88128.0,0.00572]
[1766152236590,0.76593,88138.0,88128.0,0.00572]
[1766152236905,0.01134597,88137.0,88128.0,0.00572]
[1766152237114,0.06807592,88137.0,88128.0,0.00572]
[1766152237477,0.0113461,88136.0,88128.0,0.00572]
[1766152237906,0.83400527,88138.0,88128.0,0.00572]
[1766152238107,0.01134597,88137.0,88128.0,0.00572]
[1766152238888,0.83400527,88138.0,88128.0,0.00572]
[1766152239339,0.01134597,88137.0,88128.0,0.00572]
[1766152242023,0.44059,88133.0,88122.0,0.04544]
[1766152242360,0.77727687,88130.0,88123.0,0.00572]
[1766152242726,0.76593,88130.0,88123.0,0.00572]
[1766152243635,0.44059,88130.0,88123.0,0.00572]
[1766152243836,0.01134635,88134.0,88123.0,0.00572]
[1766152244069,0.39341797,88135.0,88123.0,0.00572]
[1766152244294,0.01384442,88149.0,88135.0,0.001099]
[1766152244497,0.05672206,88150.0,88136.0,0.00572]
[1766152244653,0.01134404,88152.0,88137.0,0.69975]
[1766152244654,0.33668404,88152.0,88137.0,0.69975]
[1766152244861,0.33668404,88152.0,88140.0,1.18771197]
[1766152244862,0.32534,88152.0,88140.0,1.18771197]
[1766152245089,0.01134417,88151.0,88140.0,0.37068]
[1766152245463,0.01134404,88152.0,88143.0,0.69991]
[1766152245665,0.01134404,88152.0,88144.0,0.00572]
[1766152245871,0.01134417,88151.0,88144.0,0.00572]
[1766152246266,0.01134404,88152.0,88144.0,0.00572]
[1766152247317,0.01134417,88151.0,88144.0,0.00572]
[1766152247525,0.0025,88152.0,88144.0,0.00572]
[1766152247907,0.01384404,88152.0,88144.0,0.00572]
[1766152248136,0.01134417,88151.0,88144.0,0.00572]
[1766152248719,0.01384404,88152.0,88144.0,0.00572]
[1766152248922,0.01134417,88151.0,88144.0,0.00572]
[1766152249281,0.01384404,88152.0,88144.0,0.00572]
[1766152249482,0.01384391,88153.0,88144.0,0.00572]
[1766152249726,0.0025,88153.0,88144.0,0.00572]
[1766152249884,0.32534,88151.0,88145.0,0.00572]
[1766152250067,0.32534,88150.0,88145.0,0.00572]
[1766152250441,0.44059,88151.0,88145.0,0.00572]
[1766152252306,0.0025,88153.0,88151.0,0.001099]
[1766152252952,0.0025,88153.0,88150.0,0.00572]
[1766152256955,0.01384391,88153.0,88150.0,0.00572]
[1766152257152,0.0025,88153.0,88150.0,0.00572]
[1766152257560,0.33918391,88153.0,88150.0,0.00572]
[1766152257767,0.32784,88153.0,88150.0,0.00572]
[1766152258121,0.39590353,88153.0,88150.0,0.00572]
[1766152258534,0.77727404,88152.0,88149.0,0.00572]
[1766152259640,0.76593,88152.0,88149.0,0.00572]
[1766152259841,0.44059,88152.0,88149.0,0.00572]
[1766152261274,0.439491,88152.0,88149.0,0.00572]
[1766152261633,0.439491,88152.0,88140.0,0.71483]
[1766152261854,0.01134404,88152.0,88141.0,0.00572]
[1766152262060,0.01384391,88153.0,88141.0,0.00572]
[1766152262061,0.32534,88149.0,88141.0,0.00572]
[1766152262295,0.32784,88153.0,88141.0,0.00572]
[1766152262823,0.32784,88153.0,88141.0,0.00513789]
[1766152263117,0.33668404,88152.0,88141.0,0.00513789]
[1766152263340,0.76593,88151.0,88141.0,0.00513789]
[1766152263873,0.070564,88153.0,88142.0,0.38617]
[1766152264075,0.07056348,88153.0,88142.0,0.38617]
[1766152264279,0.0680643,88152.0,88142.0,0.38617]
[1766152264716,0.01134404,88152.0,88142.0,0.38617]
[1766152265894,0.01134455,88148.0,88141.0,0.00513789]
[1766152266079,0.83837557,88151.0,88141.0,0.00513789]
[1766152266282,0.77031,88151.0,88141.0,0.00513789]
[1766152266482,0.06806682,88149.0,88141.0,0.00513789]
[1766152266810,0.34338,88150.0,88141.0,0.00513789]
[1766152267236,0.34338,88150.0,88142.0,0.00572]
[1766152267474,0.001099,88142.0,88127.0,0.06123859]
[1766152267612,0.001099,88142.0,88126.0,0.43202]
[1766152267613,0.06807275,88141.0,88128.0,0.00572]
[1766152267801,0.8383836,88140.0,88128.0,0.00572]
[1766152268002,0.78165558,88140.0,88128.0,0.00572]
[1766152268239,0.77031,88140.0,88128.0,0.00572]
[1766152268653,0.01134558,88140.0,88128.0,0.00572]
[1766152268950,0.41145555,88138.0,88128.0,0.00572]
[1766152269155,0.01134597,88137.0,88128.0,0.00572]
[1766152269496,0.01134545,88141.0,88128.0,0.00572]
[1766152269497,0.0025,88154.0,88138.0,0.05672904]
[1766152269695,0.0025,88154.0,88143.0,0.71618]
[1766152269814,0.0025,88154.0,88144.0,0.02269014]
[1766152270020,0.0025,88154.0,88143.0,0.71618]
[1766152270021,0.01384378,88154.0,88145.0,0.00572]
[1766152270476,0.07056284,88154.0,88145.0,0.00572]
[1766152270702,0.0025,88151.0,88145.0,0.00572]
[1766152270823,0.0025,88152.0,88145.0,0.00572]
[1766152271953,0.41144218,88155.0,88145.0,0.00572]
[1766152271954,0.0025,88154.0,88145.0,0.00572]
[1766152272357,0.01384404,88152.0,88145.0,0.00572]
[1766152272579,0.05672398,88147.0,88145.0,0.00572]
[1766152273172,0.01134455,88148.0,88136.0,0.38334]
[1766152273376,0.77031,88150.0,88137.0,0.00572]
[1766152273377,0.01134442,88149.0,88137.0,0.00572]
[1766152273779,0.41144659,88149.0,88137.0,0.00572]
[1766152274127,0.34338,88149.0,88137.0,0.00572]
[1766152274332,0.35472442,88149.0,88137.0,0.00572]
[1766152274714,0.01134455,88148.0,88137.0,0.00572]
[1766152274895,0.01134468,88147.0,88137.0,0.00572]
[1766152275091,0.39428724,88149.0,88137.0,0.00572]
[1766152275294,0.39428724,88149.0,88136.0,0.38334]
[1766152275295,0.33756476,88149.0,88138.0,0.00572]
[1766152275515,0.33756476,88149.0,88139.0,0.00572]
[1766152275516,0.34890918,88149.0,88139.0,0.00572]
[1766152275717,0.34890918,88149.0,88136.0,0.3265982]
[1766152275718,0.33756476,88149.0,88140.0,0.00572]
[1766152275916,0.33756476,88149.0,88141.0,0.00572]
[1766152276084,0.33756476,88149.0,88142.0,0.00572]
[1766152276522,0.42693,88148.0,88142.0,0.00572]
[1766152277056,0.42693,88148.0,88141.0,0.00572]
[1766152277783,0.42693,88148.0,88140.0,0.00572]
[1766152278150,0.35472391,88153.0,88140.0,0.00572]
[1766152278355,0.41144355,88153.0,88140.0,0.00572]
[1766152278674,0.01134429,88150.0,88140.0,0.00572]
[1766152278872,0.01134442,88149.0,88140.0,0.00572]
[1766152279075,0.06806598,88150.0,88140.0,0.00572]
[1766152279292,0.01134417,88151.0,88140.0,0.13011]
[1766152279494,0.01134417,88151.0,88140.0,0.0960191]
[1766152279701,0.50455451,88152.0,88140.0,0.0676482]
[1766152279907,0.43649,88152.0,88140.0,0.0335573]
[1766152280319,0.44783404,88152.0,88140.0,0.0335573]
[1766152280528,0.50455427,88152.0,88140.0,0.0335573]
[1766152280746,0.50455479,88152.0,88137.0,0.27285]
[1766152280897,0.01134417,88151.0,88140.0,0.00572]
[1766152281100,0.00572,88153.0,88140.0,0.28281]
[1766152281422,0.0025,88155.0,88142.0,0.27709]
[1766152281742,0.01384378,88154.0,88143.0,0.0226904]
[1766152281923,0.0025,88154.0,88143.0,0.0226904]
[1766152282121,0.0025,88154.0,88143.0,0.27804]
[1766152282304,0.0025,88154.0,88143.0,0.2439491]
[1766152283110,0.0025,88154.0,88144.0,0.02269014]
[1766152283335,0.0025,88154.0,88148.0,0.01359188]
[1766152283543,0.00036376,88156.0,88142.0,0.06807158]
[1766152283544,0.00036376,88156.0,88146.0,0.00572]
[1766152284547,0.00036376,88156.0,88146.0,0.25113]
[1766152285462,0.0025,88155.0,88146.0,0.25113]
[1766152286597,0.0025,88155.0,88147.0,0.02268937]
[1766152286799,0.01134236,88165.0,88147.0,0.02268937]
[1766152286800,0.06804936,88172.0,88154.0,0.24513]
[1766152287016,0.06805167,88169.0,88156.0,0.24445]
[1766152287315,0.0025,88167.0,88156.0,0.24445]
[1766152287529,0.0025,88165.0,88155.0,0.00572]
[1766152287679,0.78644249,88164.0,88155.0,0.00572]
[1766152287860,0.02751711,88163.0,88155.0,0.00572]
[1766152288076,0.01134275,88162.0,88155.0,0.00572]
[1766152288390,0.02751711,88163.0,88155.0,0.004621]
[1766152288596,0.84315507,88164.0,88155.0,0.004621]
[1766152288779,0.78644249,88164.0,88155.0,0.004621]
[1766152288981,0.7751,88164.0,88155.0,0.004621]
[1766152289183,0.78644249,88164.0,88155.0,0.004621]
[1766152289605,0.7751,88164.0,88155.0,0.004621]
[1766152289776,0.83181255,88164.0,88155.0,0.004621]
[1766152289977,0.84315504,88164.0,88155.0,0.004621]
[1766152290181,0.78644249,88164.0,88155.0,0.004621]
[1766152290584,0.03046199,88163.0,88156.0,0.00572]
[1766152291708,0.08717514,88163.0,88156.0,0.00572]
[1766152291919,0.03046199,88163.0,88156.0,0.00572]
[1766152292743,0.01134275,88162.0,88156.0,0.00572]
[1766152292961,0.08717527,88163.0,88156.0,0.00572]
[1766152294065,0.08717527,88163.0,88149.0,1.88e-06]
[1766152294299,0.08717527,88163.0,85250.0,0.005]
[1766152294300,0.08717527,88163.0,88067.0,0.0002]
[1766152294301,0.00199999,88100.0,88067.0,0.0002]
[1766152294463,0.00199999,88100.0,88059.0,0.32253]
[1766152294464,0.00099999,88110.0,88059.0,0.25476514]
[1766152294465,0.00199998,88070.0,88059.0,0.25476514]
[1766152294627,0.00199998,88070.0,88057.0,0.41906]
[1766152294628,0.00090098,88070.0,88057.0,0.40768935]
[1766152294972,0.00090098,88070.0,88057.0,0.37360692]
[1766152294973,0.81772952,88070.0,88057.0,0.37360692]
[1766152295191,0.01135524,88065.0,88057.0,0.31688206]
[1766152295402,0.81772952,88070.0,88058.0,0.00572]
[1766152295403,0.01135589,88060.0,88058.0,0.00572]